[Event "IIFL Wealth  4th Mumbai Junior U-13"]
[Site "Mumbai"]
[Date "2019.01.06"]
[Round "8"]
[White "Pranav, V."]
[Black "Sarvade Mihiir"]
[Result "1-0"]
[ECO "A45"]
[WhiteElo "2318"]
[BlackElo "1563"]
[Annotator "ChessBase"]
[PlyCount "59"]
[EventDate "2018.12.30"]
[EventType "swiss"]
[EventCountry "IND"]
[SourceTitle "playchess.com"]
[Source "ChessBase"]
[SourceQuality "1"]
[TimeControl "40/5400+30:1800+30"]

1. d4 {[%emt 0:04:49]} Nf6 {[%emt 0:00:00]} 2. Nc3 {[%emt 0:00:08]} d5 {[%emt 0:01:26]} 3. Bf4 {[%emt 0:00:09]} g6 {[%emt 0:01:19]} 4. e3 {[%emt 0:00:41]} Bg7 {[%emt 0:00:14]} 5. Nf3 {[%emt 0:01:00]} O-O {[%emt 0:03:47]} 6. Be2 {[%emt 0:00:23]} c5 {[%emt 0:12:31]} 7. Nb5 {[%emt 0:00:28]} Na6 {[%emt 0:05:56]} 8. c3 {[%emt 0:00:21]} Nh5 {[%emt 0:16:40]} 9. Be5 {[%emt 0:00:56]} f6 {[%emt 0:08:25]} 10. Bg3 {[%emt 0:01:20]} Nxg3 {[%emt 0:02:12]} 11. hxg3 {[%emt 0:00:14]} e5 {[%emt 0:00:49]} 12. dxe5 {[%emt 0:01:35]} fxe5 {[%emt 0:00:46]} 13. e4 {[%emt 0:00:14]} Be6 {[%emt 0:18:53]} 14. Qc2 {[%emt 0:03:29]} d4 {[%emt 0:03:31]} 15. Na3 {[%emt 0:00:27]} Rc8 {[%emt 0:04:15]} 16. Bc4 {[%emt 0:02:04]} Bxc4 {[%emt 0:02:22]} 17. Nxc4 {[%emt 0:00:15]} Qe7 {[%emt 0:04:50]} 18. Qb3 {[%emt 0:01:05]} Kh8 {[%emt 0:01:50]} 19. a4 {[%emt 0:02:46]} Nb8 {[%emt 0:01:52]} 20. O-O-O {[%emt 0:02:38]} Nc6 {[%emt 0:01:45]} 21. Rh3 {[%emt 0:00:37]} h6 {[%emt 0:05:49]} 22. Rdh1 {[%emt 0:00:59]} Rf6 {[%emt 0:00:48]} 23. g4 {[%emt 0:00:31]} Rcf8 {[%emt 0:00:48]} 24. g5 {[%emt 0:01:40]} Rxf3 {[%emt 0:00:27]} 25. gxf3 {[%emt 0:00:25]} Qxg5+ {[%emt 0:00:17]} 26. Kb1 {[%emt 0:00:16]} b6 {[%emt 0:00:46]} 27. Qb5 {[%emt 0:02:21]} Rf6 {[%emt 0:00:26]} 28. Qa6 {[%emt 0:01:04]} Rf8 {[%emt 0:00:38]} 29. Qb7 {[%emt 0:00:10]} Qf6 {[%emt 0:00:11]} 30. Rxh6+ {[%emt 0:00:15]} 1-0

[Event "IIFL Wealth  4th Mumbai Junior U-13"]
[Site "Mumbai"]
[Date "2019.01.06"]
[Round "8"]
[White "Zia, Tahsin Tajwar"]
[Black "Devesh Anand Naik"]
[Result "1/2-1/2"]
[ECO "A48"]
[WhiteElo "2125"]
[BlackElo "1763"]
[Annotator "NA"]
[PlyCount "69"]
[EventDate "2018.12.30"]
[EventType "swiss"]
[EventCountry "IND"]
[SourceTitle "playchess.com"]
[Source "ChessBase"]
[SourceQuality "1"]
[TimeControl "40/5400+30:1800+30"]

1. d4 {[%emt 0:00:00]} Nf6 {[%emt 0:00:00]} 2. Nf3 {[%emt 0:00:06]} g6 {[%emt 0:00:00]} 3. Bf4 {[%emt 0:00:04]} Bg7 {[%emt 0:00:00]} 4. e3 {[%emt 0:00:06]} O-O {[%emt 0:00:01]} 5. h3 {[%emt 0:00:05]} d6 {[%emt 0:00:06]} 6. Be2 {[%emt 0:00:04]} Nbd7 {[%emt 0:00:09]} 7. Bh2 {[%emt 0:00:07]} Qe8 {[%emt 0:00:18]} 8. c4 {[%emt 0:01:03]} e5 {[%emt 0:00:18]} 9. Nc3 {[%emt 0:00:09]} c6 {[%emt 0:00:20]} 10. O-O {[%emt 0:00:38]} Qe7 {[%emt 0:02:24]} 11. Rc1 {[%emt 0:02:52]} Ne8 {[%emt 0:00:46]} 12. b4 {[%emt 0:03:30] A48: 1 d4 Nf6 2 Nf3 g6: Torre, London and Colle Systems} f5 {[%emt 0:01:45] LiveBook: 4 Games} (12... a6 13. c5 d5 14. a4 Nc7 15. b5 axb5 16. axb5 Ne6 17. Na4 Rd8 18. Bxe5 Bxe5 19. dxe5 Nexc5 20. Nxc5 Nxc5 {½-½ (40) Rogers,I (2618)-Babula,V (2565) Prague 1999}) 13. Qb3 {[%emt 0:03:20]} Kh8 {[%emt 0:02:44]} 14. Rfd1 $146 {[%emt 0:03:26]} ({Predecessor:} 14. a4 Nef6 15. c5 Ne4 16. Nxe4 fxe4 17. cxd6 Qxd6 18. dxe5 Qe7 19. e6 exf3 20. Bxf3 {0-1 (35) Ferre Navarro,J (1604)-Sanz Ogaya,M (1959) Mataro 2018}) 14... g5 {[%emt 0:04:03]} 15. dxe5 {[%emt 0:12:39]} dxe5 {[%emt 0:01:00]} 16. a4 {[%emt 0:05:20]} a5 {[%emt 0:04:09]} 17. b5 {[%emt 0:04:16]} h5 {[%emt 0:03:11]} 18. Nd2 {[%emt 0:05:35]} g4 {[%emt 0:00:14]} 19. hxg4 {[%emt 0:00:45]} hxg4 {[%emt 0:00:08]} 20. e4 {[%emt 0:03:42]} f4 {[%emt 0:01:08]} 21. bxc6 {[%emt 0:09:43]} bxc6 {[%emt 0:00:36]} 22. Bxg4 {[%emt 0:03:13]} Nc5 {[%emt 0:00:45]} 23. Qa3 {[%emt 0:03:37]} Bxg4 {[%emt 0:00:18]} 24. f3 {[%emt 0:00:55]} Qa7 {[%emt 0:00:46]} 25. Kh1 {[%emt 0:03:54]} Nd3 {[%emt 0:07:16]} 26. Bg1 {[%emt 0:06:40]} Nf2+ {[%emt 0:01:19]} 27. Bxf2 {[%emt 0:00:39]} Qxf2 {[%emt 0:00:11]} 28. fxg4 {[%emt 0:00:26] [#]} f3 $1 {[%emt 0:03:53]} 29. Nxf3 {[%emt 0:02:48]} Rxf3 {[%emt 0:00:53]} 30. gxf3 {[%emt 0:01:12]} Qxf3+ {[%emt 0:00:56] Double Attack} 31. Kh2 {[%emt 0:02:51]} Qf2+ {[%emt 0:00:17]} 32. Kh1 {[%emt 0:00:07]} Qf3+ {[%emt 0:00:12]} 33. Kh2 {[%emt 0:00:04]} Qf2+ {[%emt 0:00:06]} 34. Kh1 {[%emt 0:00:20]} Qf3+ $11 {[%emt 0:00:05]} 35. Kh2 1/2-1/2

[Event "IIFL Wealth  4th Mumbai Junior U-13"]
[Site "Mumbai"]
[Date "2019.01.06"]
[Round "8"]
[White "Manish Anto Cristiano F"]
[Black "Aaryan Varshney"]
[Result "1/2-1/2"]
[ECO "B90"]
[WhiteElo "2065"]
[BlackElo "2200"]
[Annotator "NA"]
[PlyCount "105"]
[EventDate "2018.12.30"]
[EventType "swiss"]
[EventCountry "IND"]
[SourceTitle "playchess.com"]
[Source "ChessBase"]
[SourceQuality "1"]
[TimeControl "40/5400+30:1800+30"]

1. e4 c5 {[%emt 0:01:54]} 2. Nf3 {[%emt 0:00:00]} d6 {[%emt 0:00:05]} 3. d4 {[%emt 0:00:36]} cxd4 {[%emt 0:00:06]} 4. Nxd4 {[%emt 0:00:28]} Nf6 {[%emt 0:00:06]} 5. Nc3 {[%emt 0:00:29]} a6 {[%emt 0:00:05]} 6. Be3 {[%emt 0:00:34]} e5 {[%emt 0:00:20]} 7. Nf3 {[%emt 0:00:48]} Be7 {[%emt 0:01:12]} 8. Bc4 {[%emt 0:00:42]} O-O {[%emt 0:01:45]} 9. O-O {[%emt 0:00:49]} Be6 {[%emt 0:14:11]} 10. Bb3 {[%emt 0:01:05]} h6 {[%emt 0:02:49] B90: Sicilian Najdorf: Unusual White 6th moves, 6 Be3 Ng4 and 6 Be3 e5} 11. Qe2 {[%emt 0:03:23]} Nc6 {[%emt 0:01:19]} 12. Rfd1 {[%emt 0:05:15]} Rc8 {[%emt 0:02:19]} 13. Nh4 {[%emt 0:05:16] LiveBook: 6 Games [#]} Na5 $146 {[%emt 0:01:26]} ({Predecessor:} 13... b5 14. Ng6 Bxb3 15. Nxe7+ Qxe7 16. axb3 Nb4 17. Bb6 Rb8 18. Ba5 Nc6 19. Nd5 Nxd5 20. Rxd5 Rfc8 21. c3 b4 22. Bxb4 Nxb4 23. cxb4 Rxb4 24. Qxa6 {½-½ (24) Volokitin,A (2692)-Andriasian,Z (2613) Moscow 2010}) 14. Bxe6 $1 {[%emt 0:01:43]} fxe6 {[%emt 0:00:02]} 15. Ng6 {[%emt 0:00:20]} Re8 {[%emt 0:09:18]} 16. Nxe5 {[%emt 0:02:24] Pin} Qc7 {[%emt 0:00:53]} 17. Ng6 {[%emt 0:07:14]} Nc4 {[%emt 0:00:33]} (17... Bd8 $11) 18. Bc1 {[%emt 0:03:10]} b5 {[%emt 0:01:07]} 19. b3 {[%emt 0:03:45]} Nb6 {[%emt 0:01:47]} 20. Bb2 {[%emt 0:05:23]} b4 {[%emt 0:00:31]} 21. Na4 {[%emt 0:03:04]} Nxa4 {[%emt 0:00:10]} 22. bxa4 {[%emt 0:00:11]} Qxc2 {[%emt 0:03:31]} 23. Qxc2 {[%emt 0:04:03]} Rxc2 {[%emt 0:00:01]} 24. Nxe7+ {[%emt 0:00:16]} Rxe7 {[%emt 0:00:01]} 25. Bxf6 {[%emt 0:00:16]} gxf6 {[%emt 0:00:01]} 26. Rxd6 {[%emt 0:00:21]} Kf7 {[%emt 0:01:18]} 27. Rxa6 {[%emt 0:01:16]} Rd7 {[%emt 0:00:26]} 28. Rb6 {[%emt 0:00:54]} Rxa2 {[%emt 0:00:29]} 29. Rf1 {[%emt 0:08:10]} Rxa4 {[%emt 0:13:11]} 30. Re1 {[%emt 0:02:23]} Rd2 {[%emt 0:01:58]} 31. e5 {[%emt 0:01:41] [#]} Re2 $1 {[%emt 0:02:28] Back Rank} 32. Kf1 {[%emt 0:00:10]} Rb2 {[%emt 0:01:04]} 33. exf6 {[%emt 0:01:56]} Raa2 {[%emt 0:09:58]} 34. Rexe6 {[%emt 0:00:16]} Rxf2+ {[%emt 0:00:05]} 35. Ke1 {[%emt 0:00:23]} Rfb2 {[%emt 0:00:16]} 36. Re7+ {[%emt 0:00:26]} Kg6 {[%emt 0:00:05]} 37. Rg7+ {[%emt 0:02:05]} Kf5 {[%emt 0:13:01]} 38. Rd6 $11 {[%emt 0:01:58]} Rb1+ {[%emt 0:01:01]} 39. Rd1 {[%emt 0:00:25]} Rxd1+ {[%emt 0:00:04]} 40. Kxd1 {[%emt 0:00:00]} Kxf6 {[%emt 0:00:00]} 41. Rb7 {[%emt 0:02:01]} Rxg2 {[%emt 0:00:12]} 42. Rxb4 {[%emt 0:00:07]} Rxh2 {[%emt 0:00:05]} 43. Ke1 {[%emt 0:00:10]} Rg2 {[%emt 0:00:08]} 44. Kf1 {[%emt 0:00:10]} Rg5 {[%emt 0:00:07]} 45. Rb6+ {[%emt 0:00:08]} Kg7 {[%emt 0:00:07]} 46. Rb7+ {[%emt 0:00:15]} Kg6 {[%emt 0:00:09]} 47. Rb4 {[%emt 0:00:13]} h5 {[%emt 0:00:10]} 48. Rb6+ {[%emt 0:00:17]} Kf5 {[%emt 0:00:02]} 49. Rb5+ {[%emt 0:00:10]} Kf4 {[%emt 0:00:01]} 50. Rxg5 {[%emt 0:00:14]} Kxg5 {[%emt 0:00:01]} 51. Kg1 {[%emt 0:00:15]} h4 {[%emt 0:00:04]} 52. Kh2 {[%emt 0:00:10]} h3 {[%emt 0:00:00]} 53. Kxh3 {[%emt 0:00:14]} 1/2-1/2

[Event "IIFL Wealth  4th Mumbai Junior U-13"]
[Site "Mumbai"]
[Date "2019.01.06"]
[Round "8"]
[White "Kadam Om Manish"]
[Black "Abhyuday Santhosh"]
[Result "1-0"]
[ECO "B92"]
[WhiteElo "1944"]
[BlackElo "1409"]
[Annotator "NA"]
[PlyCount "85"]
[EventDate "2018.12.30"]
[EventType "swiss"]
[EventCountry "IND"]
[SourceTitle "playchess.com"]
[Source "ChessBase"]
[SourceQuality "1"]
[TimeControl "40/5400+30:1800+30"]

{[%evp 18,79,-12,32767,32767,32767,-11,0,43,32767,52,57,56,53,59,32767,32767,32767,32767,32767,32767,32767,32767,32767,32767,32767,32767,32767,32767,32767,32767,12,33,18,14,14,40,32767,43,52,46,86,43,47,46,52,38,53,112,126,111,120,154,157,244,32767,32767,342,29974,337,497,561,29974,29975]} 1. e4 {[%emt 0:00:00]} c5 {[%emt 0:01:28]} 2. Nf3 {[%emt 0:00:00]} d6 {[%emt 0:01:00]} 3. d4 {[%emt 0:00:00]} cxd4 {[%emt 0:00:27]} 4. Nxd4 {[%emt 0:00:00]} Nf6 {[%emt 0:00:19]} 5. Nc3 {[%emt 0:00:01]} a6 {[%emt 0:00:25]} 6. Be2 {[%emt 0:00:06]} e5 {[%emt 0:01:01]} 7. Nf3 {[%emt 0:00:48]} Be6 {[%emt 0:02:27]} 8. Bg5 {[%emt 0:01:45] B92: Sicilian Najdorf: 6 Be2} Be7 {[%emt 0:00:45]} 9. Nd2 {[%emt 0:02:17]} (9. Bxf6 Bxf6 10. Qd2 O-O 11. O-O Qc7 12. Rfd1 Be7 13. Nd5 Bxd5 14. Qxd5 Nd7 15. Nd2 b5 16. c4 {½-½ (66) Van Foreest,J (2617)-Fedoseev,V (2713) Hoogeveen 2018}) 9... b5 {[%emt 0:18:13]} 10. Bxf6 {[%emt 0:02:18]} Bxf6 {[%emt 0:02:31]} 11. Nf1 {[%emt 0:04:59]} Nc6 {[%emt 0:10:24]} 12. Ne3 {[%emt 0:02:57]} Ne7 $146 {[%emt 0:02:16]} ({Predecessor:} 12... Nd4 13. Ncd5 Bg5 14. c3 Bxe3 15. Nxe3 Nxe2 16. Qxe2 {0-1 (80) Vettese,N (2102)-Song,G (2174) Mississauga 2017}) 13. a4 {[%emt 0:23:30]} b4 {[%emt 0:01:22]} 14. Ncd5 {[%emt 0:00:14]} Bxd5 {[%emt 0:01:21]} 15. Nxd5 {[%emt 0:01:00]} Nxd5 {[%emt 0:00:16]} 16. Qxd5 {[%emt 0:00:25]} O-O {[%emt 0:00:29]} 17. O-O {[%emt 0:00:48]} Qc7 {[%emt 0:00:42]} 18. Bc4 {[%emt 0:02:48]} a5 {[%emt 0:01:58]} 19. b3 {[%emt 0:00:35]} Qc5 {[%emt 0:00:52]} 20. Qd3 {[%emt 0:04:00]} Rac8 {[%emt 0:01:46]} 21. Rad1 {[%emt 0:01:31]} Be7 {[%emt 0:00:46]} 22. Qe2 {[%emt 0:00:13]} Qb6 {[%emt 0:00:41]} 23. Kh1 {[%emt 0:00:51]} Rc5 {[%emt 0:07:05]} 24. Qg4 {[%emt 0:08:30]} Qc7 {[%emt 0:00:54]} 25. f4 {[%emt 0:02:51]} exf4 {[%emt 0:00:48]} 26. Rxf4 {[%emt 0:00:20]} Qc8 {[%emt 0:01:43]} 27. Qf3 {[%emt 0:01:15]} Qe8 {[%emt 0:03:57]} 28. Rf1 {[%emt 0:02:57]} Bf6 {[%emt 0:00:50]} 29. Rxf6 {[%emt 0:00:13]} gxf6 {[%emt 0:00:14]} 30. Qxf6 {[%emt 0:00:06]} Rxc4 $1 {[%emt 0:01:40]} 31. bxc4 {[%emt 0:09:34]} Qxe4 {[%emt 0:00:37]} 32. Qxd6 {[%emt 0:00:40]} Qxc2 {[%emt 0:00:40] [#]} ({Better is} 32... Qe2 $14 33. Qf4 Qxc2) 33. h3 $1 {[%emt 0:04:33]} Qg6 {[%emt 0:00:46] [#]} ({Not} 33... Qxc4 $2 34. Rf3 $18) (33... Qxa4 $2 34. Qf6 $18) 34. Qe5 $1 {[%emt 0:01:49]} f6 {[%emt 0:04:07]} 35. Qxa5 {[%emt 0:00:54]} b3 {[%emt 0:00:35]} (35... Qd3 {might work better.} 36. Rf3 Qd1+ 37. Kh2 Qd6+ 38. Rg3+ Kh8) 36. Qb4 {[%emt 0:03:22]} Qc2 {[%emt 0:09:55] [#]} 37. Rf3 $1 {[%emt 0:00:58]} Rd8 $2 {[%emt 0:05:23]} (37... Re8 $18 38. Rxb3 (38. Qxb3 Qxb3 39. Rxb3 Ra8 $18) 38... Qe4) 38. Rxb3 $2 {[%emt 0:02:09]} (38. Rg3+ Qg6 39. Rxg6+ hxg6 40. c5) 38... Qf2 {[%emt 0:01:40]} 39. Kh2 {[%emt 0:01:23]} Rd1 {[%emt 0:03:11]} (39... Kh8 $18 40. Rf3 Qd4) 40. Qb8+ {[%emt 0:00:00]} Kf7 {[%emt 0:00:00]} 41. Rb7+ {[%emt 0:00:23]} Ke6 {[%emt 0:00:43]} 42. Qe8+ {[%emt 0:00:01]} Kf5 {[%emt 0:00:29]} 43. Qh5+ {[%emt 0:00:08]} 1-0

[Event "IIFL Wealth  4th Mumbai Junior U-13"]
[Site "Mumbai"]
[Date "2019.01.06"]
[Round "8"]
[White "Savitha Shri B"]
[Black "Jadhav Jyotiraditya"]
[Result "1-0"]
[ECO "A13"]
[WhiteElo "1894"]
[BlackElo "1358"]
[Annotator "NA RC"]
[PlyCount "125"]
[EventDate "2018.12.30"]
[EventType "swiss"]
[EventCountry "IND"]
[SourceTitle "playchess.com"]
[Source "ChessBase"]
[SourceQuality "1"]
[TimeControl "40/5400+30:1800+30"]

1. Nf3 d5 2. c4 e6 3. g3 Nf6 4. Bg2 c6 5. b3 Bd6 6. Bb2 O-O 7. O-O Nbd7 8. d3 Qe7 9. Qc2 Re8 10. e4 dxe4 11. dxe4 e5 12. Nbd2 Nf8 13. Rac1 N8d7 14. Ne1 b6 15. Nd3 Bb7 16. Kh1 Nc5 17. Ne1 Rad8 18. Bc3 Bb8 19. b4 Ne6 20. Nb3 c5 21. b5 Nd4 22. Bxd4 exd4 23. f3 Nd7 24. Nd3 Ne5 25. Rce1 f6 26. a4 h5 27. Nxe5 fxe5 28. Qd3 Qg5 29. Bh3 Bc8 30. Bxc8 Rxc8 31. Rg1 Re6 32. a5 Rf8 33. axb6 axb6 34. Qd2 Qf6 35. Ref1 Qf7 36. Qe2 Rf6 37. Nd2 Qd7 38. Qg2 Bd6 39. Nb3 Qf7 40. Nd2 Qd7 41. Ra1 Be7 42. f4 Bd8 43. f5 Rh6 44. Nf3 Qc7 45. Ra6 Qd6 46. Ra7 Bf6 47. g4 hxg4 48. Qxg4 Rf7 49. Ra8+ Rf8 50. Ra3 Qe7 51. Ra6 Qd6 52. Kg2 Rd8 53. Kf2 Rb8 54. Ke2 Qe7 55. Kd3 Qf7 56. Qg3 Qc7 57. Rga1 Qd6 58. Ra7 Rd8 59. R1a6 Rb8 60. Ra1 Rd8 61. Rg1 Rh7 62. Qg6 Rh6 63. Rxg7+ {Rh7 Qg3+ Rh6 Ra7+} 1-0

[Event "IIFL Wealth  4th Mumbai Junior U-13"]
[Site "Mumbai"]
[Date "2019.01.06"]
[Round "8"]
[White "Jain Kashish Manoj"]
[Black "Nikhil Magizhnan"]
[Result "1/2-1/2"]
[ECO "A05"]
[WhiteElo "1853"]
[BlackElo "2148"]
[Annotator "NA"]
[PlyCount "168"]
[EventDate "2018.12.30"]
[EventType "swiss"]
[EventCountry "IND"]
[SourceTitle "playchess.com"]
[Source "ChessBase"]
[SourceQuality "1"]
[TimeControl "40/5400+30:1800+30"]

1. Nf3 {[%emt 0:00:00]} Nf6 {[%emt 0:00:55]} 2. g3 {[%emt 0:00:00]} d5 {[%emt 0:00:04]} 3. Bg2 {[%emt 0:00:00]} c5 {[%emt 0:00:06]} 4. O-O {[%emt 0:00:00]} Nc6 {[%emt 0:00:10]} 5. d3 {[%emt 0:00:02]} e5 {[%emt 0:00:19]} 6. e4 d4 {[%emt 0:13:21]} 7. Na3 {[%emt 0:00:54]} Bd6 {[%emt 0:02:24]} 8. Nc4 {[%emt 0:00:34]} Bc7 {[%emt 0:00:09] A08: King's Indian Attack} (8... O-O 9. Nxd6 Qxd6 10. Nh4 Rb8 11. h3 b5 12. f4 c4 13. fxe5 Nxe5 14. Bg5 Ne8 15. Nf5 Bxf5 16. exf5 {½-½ (66) Grigoryan,K (2571)-Ni,H (2670) chess.com INT 2018}) 9. a4 {[%emt 0:00:03]} Bg4 {[%emt 0:02:05]} 10. h3 {[%emt 0:01:34]} Be6 {[%emt 0:00:02]} 11. b3 {[%emt 0:08:27]} h6 {[%emt 0:01:24]} 12. Ne1 $146 {[%emt 0:04:48]} ({Predecessor:} 12. Kh2 a6 13. Ba3 Nd7 14. Ncxe5 Ndxe5 15. Nxe5 Bxe5 16. Bxc5 {0-1 (27) Soncini,S-Vieites,C ICCF email 2017}) 12... Qd7 {[%emt 0:03:54]} 13. Kh2 {[%emt 0:03:40]} g5 {[%emt 0:00:55]} 14. Bd2 {[%emt 0:01:49]} Ng8 {[%emt 0:12:03]} 15. Qc1 {[%emt 0:10:54]} Nge7 {[%emt 0:00:29]} 16. a5 {[%emt 0:00:30]} Ng6 {[%emt 0:01:30]} 17. Qa3 {[%emt 0:15:53]} Qe7 {[%emt 0:00:23]} 18. Rb1 {[%emt 0:08:51]} O-O {[%emt 0:07:33]} 19. b4 {[%emt 0:06:35]} b5 {[%emt 0:01:55]} 20. axb6 {[%emt 0:01:57]} axb6 {[%emt 0:00:45]} 21. Qb2 {[%emt 0:00:10]} b5 {[%emt 0:03:06]} 22. Nxe5 {[%emt 0:10:13]} Ncxe5 {[%emt 0:13:15]} 23. f4 {[%emt 0:00:39]} gxf4 {[%emt 0:17:21]} 24. gxf4 {[%emt 0:00:07]} Ra2 {[%emt 0:00:18]} 25. Qc1 {[%emt 0:00:12]} Nd7 {[%emt 0:00:19]} 26. Kh1 {[%emt 0:02:26]} f5 {[%emt 0:02:42]} 27. bxc5 {[%emt 0:00:26]} Qh4 {[%emt 0:01:13]} 28. Nf3 {[%emt 0:01:19]} Qf6 {[%emt 0:01:54]} 29. e5 {[%emt 0:00:16]} Qf7 {[%emt 0:01:09]} 30. Nxd4 {[%emt 0:04:08]} Bd5 {[%emt 0:00:16]} 31. Nf3 {[%emt 0:02:35]} Kh7 {[%emt 0:03:50]} 32. Rxb5 {[%emt 0:04:12]} Ne7 {[%emt 0:01:17]} 33. Rb2 {[%emt 0:01:23]} Rxb2 {[%emt 0:00:53]} 34. Qxb2 {[%emt 0:00:01]} Rg8 {[%emt 0:00:08]} 35. c4 {[%emt 0:03:20]} Bc6 {[%emt 0:00:45]} 36. Be3 {[%emt 0:02:35]} Ra8 {[%emt 0:06:48]} 37. Qe2 {[%emt 0:02:33]} Ra4 {[%emt 0:00:53]} 38. Rc1 {[%emt 0:03:59]} Ra5 {[%emt 0:01:34]} 39. Bd2 {[%emt 0:01:34]} Ra2 {[%emt 0:00:34]} 40. e6 {[%emt 0:00:00]} Qg7 {[%emt 0:00:00]} 41. exd7 Ng6 {[%emt 0:01:30]} 42. Re1 $11 {[%emt 0:30:41]} ({White has to play} 42. Ng5+ $1 $18 hxg5 43. Bxc6 Nxf4 44. Qe3) 42... Nxf4 {[%emt 0:20:03]} 43. Bxf4 {[%emt 0:00:13]} Rxe2 {[%emt 0:00:37]} 44. Rxe2 {[%emt 0:00:06]} Qxd7 {[%emt 0:01:47]} 45. Bxc7 {[%emt 0:00:38]} Qxc7 {[%emt 0:06:14]} 46. Rf2 {[%emt 0:00:56]} Qa5 {[%emt 0:01:52]} 47. d4 {[%emt 0:00:28]} Be4 {[%emt 0:00:20]} 48. Kh2 {[%emt 0:01:31]} Qc3 {[%emt 0:00:13]} 49. c6 {[%emt 0:00:42]} Qxc4 {[%emt 0:00:38]} 50. Nd2 {[%emt 0:00:27]} Qxd4 {[%emt 0:01:28]} 51. Nxe4 {[%emt 0:00:06]} fxe4 {[%emt 0:00:03]} 52. Re2 {[%emt 0:00:42]} e3 {[%emt 0:00:16]} 53. c7 {[%emt 0:00:40]} Qd6+ {[%emt 0:01:01]} 54. Kg1 {[%emt 0:00:07]} Qxc7 {[%emt 0:00:12]} 55. Rxe3 {[%emt 0:00:01]} Qc5 {[%emt 0:00:19]} 56. Kf2 {[%emt 0:00:03]} h5 {[%emt 0:00:18]} 57. Kf3 {[%emt 0:00:47]} Kh6 {[%emt 0:00:22]} 58. Re4 {[%emt 0:00:26]} Qc3+ {[%emt 0:00:24]} 59. Kf2 {[%emt 0:00:05]} Kg5 {[%emt 0:00:22]} 60. h4+ {[%emt 0:00:25]} Kf5 {[%emt 0:00:03]} 61. Kg1 {[%emt 0:00:31]} Qc1+ {[%emt 0:01:05]} 62. Kh2 {[%emt 0:00:20]} Qd1 {[%emt 0:00:12]} 63. Bh1 {[%emt 0:00:14]} Qd6+ {[%emt 0:00:19]} 64. Kg1 {[%emt 0:00:18]} Qg3+ {[%emt 0:00:06]} 65. Bg2 {[%emt 0:00:01]} Qxg2+ {[%emt 0:00:57]} 66. Kxg2 {[%emt 0:00:02]} Kxe4 {[%emt 0:00:01]} 67. Kg3 {[%emt 0:00:11]} Ke3 {[%emt 0:00:01]} 68. Kg2 {[%emt 0:00:06]} Kf4 {[%emt 0:00:01]} 69. Kh3 {[%emt 0:00:03]} Kf3 {[%emt 0:00:05]} 70. Kh2 {[%emt 0:00:04]} Kg4 {[%emt 0:00:03]} 71. Kg2 {[%emt 0:00:03]} Kxh4 {[%emt 0:00:04]} 72. Kh2 {[%emt 0:00:02]} Kg4 {[%emt 0:00:05]} 73. Kg2 {[%emt 0:00:03]} h4 {[%emt 0:00:06]} 74. Kh2 {[%emt 0:00:02]} Kf4 {[%emt 0:00:05]} 75. Kh3 {[%emt 0:00:03]} Kg5 {[%emt 0:00:02]} 76. Kh2 {[%emt 0:00:07]} Kg4 {[%emt 0:00:01]} 77. Kg2 {[%emt 0:00:04]} h3+ {[%emt 0:00:02]} 78. Kh2 {[%emt 0:00:06]} Kh4 {[%emt 0:00:01]} 79. Kh1 {[%emt 0:00:05]} Kg3 {[%emt 0:00:10]} 80. Kg1 {[%emt 0:00:03]} Kf3 {[%emt 0:00:06]} 81. Kh2 {[%emt 0:00:03]} Kg4 {[%emt 0:00:05]} 82. Kh1 {[%emt 0:00:02]} Kg3 {[%emt 0:00:06]} 83. Kg1 {[%emt 0:00:03]} h2+ {[%emt 0:00:04]} 84. Kh1 {[%emt 0:00:02]} Kh3 {[%emt 0:00:06]} 1/2-1/2

[Event "IIFL Wealth  4th Mumbai Junior U-13"]
[Site "Mumbai"]
[Date "2019.01.06"]
[Round "8"]
[White "Potawad Anirudhha"]
[Black "Arjun Kumar S"]
[Result "1-0"]
[ECO "B43"]
[WhiteElo "1849"]
[BlackElo "1428"]
[Annotator "NA"]
[PlyCount "91"]
[EventDate "2018.12.30"]
[EventType "swiss"]
[EventCountry "IND"]
[SourceTitle "playchess.com"]
[Source "ChessBase"]
[SourceQuality "1"]
[TimeControl "40/5400+30:1800+30"]

{[%evp 23,86,-22,-20,-27,-18,-23,32767,32767,32767,32767,32767,32767,32767,32767,32767,32767,32767,32767,32767,32767,32767,-6,-13,-12,0,32767,32767,35,35,0,0,-18,-16,-11,414,396,386,32767,32767,32767,32767,32767,32767,476,32767,525,501,561,551,585,587,515,673,882,930,810,871,1043,29984,947,2822,4674,2514,5908,1962]} 1. e4 {[%emt 0:00:00]} c5 {[%emt 0:03:11]} 2. Nf3 {[%emt 0:02:23]} e6 {[%emt 0:01:18]} 3. d4 {[%emt 0:00:11]} cxd4 {[%emt 0:00:34]} 4. Nxd4 {[%emt 0:00:10]} a6 {[%emt 0:00:11]} 5. Nc3 {[%emt 0:00:20]} Qc7 {[%emt 0:00:07]} 6. Bd3 {[%emt 0:00:18]} Nf6 {[%emt 0:00:28]} 7. O-O {[%emt 0:07:24]} b5 {[%emt 0:01:01]} 8. a3 {[%emt 0:01:23]} Bb7 {[%emt 0:02:04]} 9. Qe2 {[%emt 0:02:51]} Be7 {[%emt 0:00:26] B43: Sicilian: Kan Variation: 5 Nc3} (9... d6 10. f4 Nbd7 11. Bd2 Be7 12. Kh1 Nc5 13. b4 Nxd3 14. cxd3 O-O 15. Nb3 Rac8 16. Rac1 Qd7 17. Be3 Rfe8 18. Rc2 e5 19. fxe5 dxe5 20. Bc5 {0-1 (60) Movsesian,S (2653)-Laznicka,V (2666) Prague 2016}) 10. Kh1 {[%emt 0:04:49]} O-O {[%emt 0:08:44]} 11. f4 {[%emt 0:01:24]} d6 {[%emt 0:00:40]} 12. Be3 $146 {[%emt 0:03:40]} ({Predecessor:} 12. Rf3 Nbd7 13. Be3 Nc5 14. Bg1 d5 15. e5 Nfe4 16. Rh3 g6 17. Nd1 Qd7 18. Ne3 f5 19. Rf1 Na4 20. b3 Bxa3 {1-0 (20) Acosta Nunez,M (1784)-Ramirez Buitrago,D (2004) Bogota 2016}) 12... Nbd7 {[%emt 0:00:36] LiveBook: 10 Games} 13. Bg1 {[%emt 0:05:48]} Rac8 {[%emt 0:03:31]} 14. Nb3 {[%emt 0:10:06]} Nc5 {[%emt 0:00:40]} 15. Rac1 {[%emt 0:07:03]} Rfd8 {[%emt 0:03:47]} 16. Nxc5 {[%emt 0:14:22]} dxc5 {[%emt 0:04:10]} 17. e5 {[%emt 0:00:13]} Nd5 {[%emt 0:00:51]} 18. Nxd5 {[%emt 0:00:39]} Bxd5 {[%emt 0:00:40]} 19. c4 {[%emt 0:00:33]} bxc4 {[%emt 0:01:50]} 20. Bxc4 {[%emt 0:00:05]} Bxc4 {[%emt 0:00:11]} 21. Rxc4 {[%emt 0:02:03]} Qb7 {[%emt 0:00:08]} 22. f5 {[%emt 0:06:34]} exf5 {[%emt 0:00:23]} 23. Rxf5 {[%emt 0:00:21]} g6 {[%emt 0:00:20]} 24. Rf1 {[%emt 0:01:30]} Bf8 {[%emt 0:00:23]} 25. Rcf4 {[%emt 0:06:25]} Rc7 {[%emt 0:00:50]} 26. e6 {[%emt 0:06:18]} f5 {[%emt 0:00:30]} 27. Bf2 {[%emt 0:06:57]} Re8 {[%emt 0:00:17]} 28. Qc4 {[%emt 0:01:38]} Qb5 $2 {[%emt 0:01:18]} (28... Be7 $11) 29. e7+ $1 {[%emt 0:00:48]} Qxc4 {[%emt 0:00:05]} 30. exf8=Q+ {[%emt 0:00:09]} Kxf8 {[%emt 0:00:05]} 31. Rxc4 {[%emt 0:00:11]} Re2 {[%emt 0:00:02]} 32. Bxc5+ {[%emt 0:00:29]} Kf7 {[%emt 0:00:07]} 33. b4 {[%emt 0:00:38]} Rd7 {[%emt 0:00:03]} 34. g4 {[%emt 0:01:31]} Rdd2 {[%emt 0:00:08]} 35. Bg1 {[%emt 0:00:11]} Kf6 {[%emt 0:00:21]} 36. gxf5 {[%emt 0:00:11]} gxf5 {[%emt 0:00:00]} 37. Rc6+ {[%emt 0:00:11]} Kg5 {[%emt 0:00:00]} 38. Rxa6 {[%emt 0:01:33]} f4 {[%emt 0:00:00]} 39. Ra8 {[%emt 0:01:24]} Kg4 {[%emt 0:00:04]} 40. Rg8+ {[%emt 0:00:00]} Kh3 {[%emt 0:00:00]} 41. Rf3+ {[%emt 0:00:18]} Kh4 {[%emt 0:00:19]} 42. Rxf4+ {[%emt 0:00:07]} Kh5 {[%emt 0:00:07]} 43. Rf7 {[%emt 0:01:30]} h6 $18 {[%emt 0:00:10]} 44. b5 {[%emt 0:00:32]} Ra2 {[%emt 0:00:01]} 45. b6 {[%emt 0:00:26]} Reb2 {[%emt 0:00:22]} 46. b7 {[%emt 0:00:15]} 1-0